[Event "FIDE U16 Olympiad_boards_1-80"]
[Site "Eindhoven, Netherlands"]
[Date "2023.08.14"]
[Round "2.79"]
[White "Kuandykuly, Danis"]
[Black "Jitwichian, Pataradit"]
[Result "1/2-1/2"]
[TimeControl "2700+10"]
[WhiteElo "1738"]
[BlackElo "1229"]

1. e4 {[%clk 00:45:18]} {[%emt 00:00:02]} e6 {[%clk 00:45:20]} {[%emt
00:00:01]} 2. d4 {[%clk 00:45:04]} {[%emt 00:00:25]} d5 {[%clk 00:45:29]}
{[%emt 00:00:01]} 3. Nd2 {[%clk 00:45:12]} c5 {[%clk 00:45:38]} {[%emt
00:00:01]} 4. exd5 {[%clk 00:45:19]} {[%emt 00:00:03]} exd5 {[%clk 00:45:46]}
{[%emt 00:00:01]} 5. Ngf3 {[%clk 00:45:12]} {[%emt 00:00:18]} Nc6 {[%clk
00:45:01]} {[%emt 00:00:54]} 6. Bb5 {[%clk 00:44:36]} {[%emt 00:00:47]} Nf6
{[%clk 00:44:18]} {[%emt 00:00:52]} 7. O-O {[%clk 00:44:30]} {[%emt 00:00:17]}
Be7 {[%clk 00:43:16]} {[%emt 00:01:11]} 8. dxc5 {[%clk 00:44:15]} {[%emt
00:00:26]} Bxc5 {[%clk 00:41:19]} {[%emt 00:02:06]} 9. Nb3 {[%clk 00:43:50]}
{[%emt 00:00:36]} Be7 {[%clk 00:41:13]} {[%emt 00:00:15]} 10. Ne5 {[%clk
00:42:05]} {[%emt 00:01:55]} Bd7 {[%clk 00:41:12]} {[%emt 00:00:11]} 11. Bxc6
{[%clk 00:41:32]} {[%emt 00:00:44]} Bxc6 {[%clk 00:40:52]} {[%emt 00:00:29]} 12.
Be3 {[%clk 00:40:38]} {[%emt 00:01:05]} O-O {[%clk 00:39:47]} {[%emt 00:01:14]}
13. c3 {[%clk 00:40:17]} {[%emt 00:00:32]} Bd6 {[%clk 00:39:05]} {[%emt
00:00:52]} 14. Nf3 {[%clk 00:40:11]} {[%emt 00:00:16]} h6 {[%clk 00:37:31]}
{[%emt 00:01:43]} 15. Bc5 {[%clk 00:39:53]} {[%emt 00:00:28]} Bxc5 {[%clk
00:36:49]} {[%emt 00:00:53]} 16. Nxc5 {[%clk 00:40:02]} {[%emt 00:00:01]} Qd6
{[%clk 00:35:38]} {[%emt 00:01:20]} 17. Nd3 {[%clk 00:39:36]} {[%emt 00:00:36]}
Rfe8 {[%clk 00:33:00]} {[%emt 00:02:47]} 18. Nd4 {[%clk 00:39:29]} {[%emt
00:00:19]} Bd7 {[%clk 00:29:23]} {[%emt 00:03:46]} 19. Qd2 {[%clk 00:34:24]}
{[%emt 00:05:16]} Ne4 {[%clk 00:27:32]} {[%emt 00:02:01]} 20. Qf4 {[%clk
00:34:23]} {[%emt 00:00:11]} Qxf4 {[%clk 00:26:11]} {[%emt 00:01:31]} 21. Nxf4
{[%clk 00:34:31]} {[%emt 00:00:02]} Bc6 {[%clk 00:25:56]} {[%emt 00:00:25]} 22.
Rad1 {[%clk 00:33:47]} {[%emt 00:00:53]} Rad8 {[%clk 00:25:20]} {[%emt
00:00:46]} 23. Nf5 {[%clk 00:32:21]} {[%emt 00:01:37]} Re5 {[%clk 00:19:53]}
{[%emt 00:05:36]} 24. Ne3 {[%clk 00:31:38]} {[%emt 00:00:54]} g5 {[%clk
00:16:29]} {[%emt 00:03:33]} 25. Ne2 {[%clk 00:29:58]} {[%emt 00:01:50]} Nxf2
{[%clk 00:15:22]} {[%emt 00:01:18]} 26. Kxf2 {[%clk 00:28:31]} {[%emt
00:01:36]} Rde8 {[%clk 00:15:30]} {[%emt 00:00:02]} 27. Rd3 {[%clk 00:28:05]}
{[%emt 00:00:36]} Bb5 {[%clk 00:15:12]} {[%emt 00:00:28]} 28. Rfd1 {[%clk
00:28:14]} {[%emt 00:00:01]} Bxd3 {[%clk 00:15:07]} {[%emt 00:00:16]} 29. Rxd3
{[%clk 00:28:23]} f5 {[%clk 00:12:36]} {[%emt 00:02:41]} 30. Nd4 {[%clk
00:27:41]} {[%emt 00:00:52]} Rf8 {[%clk 00:09:50]} {[%emt 00:02:56]} 31. Nf3
{[%clk 00:26:13]} {[%emt 00:01:38]} Re6 {[%clk 00:08:27]} {[%emt 00:01:33]} 32.
Nxd5 {[%clk 00:24:49]} {[%emt 00:01:33]} g4 {[%clk 00:02:35]} {[%emt 00:06:02]}
33. Nd4 {[%clk 00:24:29]} {[%emt 00:00:30]} Re5 {[%clk 00:01:48]} {[%emt
00:00:57]} 34. Nf4 {[%clk 00:24:17]} {[%emt 00:00:22]} Kf7 {[%clk 00:01:22]}
{[%emt 00:00:37]} 35. Nc2 {[%clk 00:23:47]} {[%emt 00:00:39]} Rfe8 {[%clk
00:00:39]} {[%emt 00:00:53]} 36. g3 {[%clk 00:23:28]} {[%emt 00:00:29]} R8e7
{[%clk 00:00:43]} {[%emt 00:00:07]} 37. Rd6 {[%clk 00:23:18]} {[%emt 00:00:21]}
Kg7 {[%clk 00:00:27]} {[%emt 00:00:25]} 38. Nd4 {[%clk 00:22:47]} {[%emt
00:00:41]} Ra5 {[%clk 00:00:20]} {[%emt 00:00:17]} 39. a3 {[%clk 00:21:43]}
{[%emt 00:01:14]} Rf7 {[%clk 00:00:26]} {[%emt 00:00:04]} 40. c4 {[%clk
00:21:15]} {[%emt 00:00:38]} Ra6 {[%clk 00:00:29]} {[%emt 00:00:08]} 41. Rxa6
{[%clk 00:21:01]} {[%emt 00:00:24]} bxa6 {[%emt 00:00:02]} 42. c5 {[%clk
00:21:10]} Kf6 {[%clk 00:00:25]} {[%emt 00:00:21]} 43. Nc6 {[%clk 00:20:14]}
{[%emt 00:01:06]} Rd7 {[%clk 00:00:19]} {[%emt 00:00:16]} 44. Ke2 {[%clk
00:20:11]} {[%emt 00:00:13]} Kg5 {[%clk 00:00:17]} {[%emt 00:01:07]} 45. b4
{[%clk 00:21:03]} {[%emt 00:00:14]} h5 {[%clk 00:00:26]} {[%emt 00:00:01]} 46.
Na5 {[%clk 00:20:13]} {[%emt 00:01:00]} Kf6 {[%clk 00:00:14]} {[%emt 00:00:22]}
47. c6 {[%clk 00:20:09]} {[%emt 00:00:15]} Rd8 {[%clk 00:00:23]} 1/2-1/2

[Event "FIDE U16 Olympiad_boards_1-80"]
[Site "Eindhoven, Netherlands"]
[Date "2023.08.14"]
[Round "2.80"]
[White "Kaewwattha, Natrada"]
[Black "Kholyavko, Mariya"]
[Result "0-1"]
[TimeControl "2700+10"]
[WhiteElo "1414"]
[BlackElo "1757"]

1. e4 {[%clk 00:45:18]} {[%emt 00:00:02]} c5 {[%clk 00:45:18]} {[%emt
00:00:02]} 2. c3 {[%clk 00:45:25]} {[%emt 00:00:03]} Nf6 {[%clk 00:45:25]}
{[%emt 00:00:02]} 3. e5 {[%clk 00:45:23]} {[%emt 00:00:13]} Nd5 {[%clk
00:45:32]} {[%emt 00:00:03]} 4. d4 {[%clk 00:44:25]} {[%emt 00:01:08]} cxd4
{[%clk 00:45:34]} {[%emt 00:00:07]} 5. cxd4 {[%clk 00:44:27]} {[%emt 00:00:08]}
d6 {[%clk 00:45:38]} {[%emt 00:00:07]} 6. Nf3 {[%clk 00:42:32]} {[%emt
00:02:04]} Nc6 {[%clk 00:45:12]} {[%emt 00:00:36]} 7. Bc4 {[%clk 00:40:30]}
{[%emt 00:02:12]} Nb6 {[%clk 00:45:11]} {[%emt 00:00:11]} 8. Bb5 {[%clk
00:40:17]} {[%emt 00:00:23]} dxe5 {[%clk 00:45:10]} {[%emt 00:00:11]} 9. Nxe5
{[%clk 00:36:00]} {[%emt 00:04:27]} Bd7 {[%clk 00:45:13]} {[%emt 00:00:07]} 10.
Nxc6 {[%clk 00:34:49]} {[%emt 00:01:21]} bxc6 {[%clk 00:43:31]} {[%emt
00:01:53]} 11. Bd3 {[%clk 00:34:22]} {[%emt 00:00:37]} g6 {[%clk 00:42:06]}
{[%emt 00:01:35]} 12. Nd2 {[%clk 00:30:25]} {[%emt 00:04:06]} Bg7 {[%clk
00:40:04]} {[%emt 00:02:11]} 13. Nb3 {[%clk 00:29:03]} {[%emt 00:01:33]} Be6
{[%clk 00:36:36]} {[%emt 00:03:38]} 14. Nc5 {[%clk 00:22:02]} {[%emt 00:07:11]}
Bd5 {[%clk 00:34:13]} {[%emt 00:02:32]} 15. Qg4 {[%clk 00:18:21]} {[%emt
00:03:52]} h5 {[%clk 00:33:03]} {[%emt 00:01:20]} 16. Qg3 {[%clk 00:16:25]}
{[%emt 00:02:06]} Bxd4 {[%clk 00:32:08]} {[%emt 00:01:05]} 17. Na6 {[%clk
00:13:10]} {[%emt 00:03:26]} Rc8 {[%clk 00:28:43]} {[%emt 00:03:33]} 18. Nb4
{[%clk 00:12:16]} {[%emt 00:01:05]} Bc4 {[%clk 00:27:28]} {[%emt 00:01:25]} 19.
Bxc4 {[%clk 00:08:33]} {[%emt 00:03:54]} Nxc4 {[%clk 00:27:31]} {[%emt
00:00:06]} 20. Qb3 {[%clk 00:08:22]} {[%emt 00:00:21]} Nd6 {[%clk 00:25:50]}
{[%emt 00:01:50]} 21. Be3 {[%clk 00:06:58]} {[%emt 00:01:35]} Bxe3 {[%clk
00:23:04]} {[%emt 00:02:57]} 22. Qxe3 {[%clk 00:06:39]} {[%emt 00:00:29]} Qb6
{[%clk 00:21:32]} {[%emt 00:01:40]} 23. Qc3 {[%clk 00:05:07]} {[%emt 00:01:43]}
O-O {[%clk 00:21:37]} {[%emt 00:00:06]} 24. O-O {[%clk 00:04:56]} {[%emt
00:00:21]} Rfd8 {[%clk 00:16:57]} {[%emt 00:04:49]} 25. Rac1 {[%clk 00:02:47]}
{[%emt 00:02:19]} Ne4 {[%clk 00:15:08]} {[%emt 00:01:59]} 26. Qa3 {[%clk
00:02:35]} {[%emt 00:00:23]} Rd2 {[%clk 00:14:14]} {[%emt 00:01:04]} 27. Nd3
{[%clk 00:01:21]} {[%emt 00:01:24]} Qd4 {[%clk 00:12:21]} {[%emt 00:02:02]} 28.
Rcd1 {[%clk 00:00:59]} {[%emt 00:00:32]} Rd8 {[%clk 00:12:24]} {[%emt
00:00:07]} 29. Rxd2 {[%clk 00:00:18]} {[%emt 00:00:51]} Nxd2 {[%clk 00:12:29]}
{[%emt 00:00:04]} 0-1